[Event "*** SCC Grand Prix: Titled Tuesday Blitz"]
[Site "Chess.com"]
[Date "2020.08.11"]
[Round "1"]
[White "Maksimus1998"]
[Black "KingChess345"]
[Result "0-1"]
[WhiteElo "2514"]
[BlackElo "2180"]
[TimeControl "180+1"]
[EndTime "10:07:30 PDT"]
[Termination "KingChess345 won by resignation"]

1. e4 {[%clk 0:03:00.3]} 1... c5 {[%clk 0:02:59.6]} 2. Nf3 {[%clk 0:03:00]} 2...
Nc6 {[%clk 0:03:00.1]} 3. Bb5 {[%clk 0:02:59.4]} 3... g6 {[%clk 0:02:59.5]} 4.
O-O {[%clk 0:02:58.4]} 4... Bg7 {[%clk 0:02:59.3]} 5. Re1 {[%clk 0:02:58.7]}
5... e5 {[%clk 0:02:54.3]} 6. c3 {[%clk 0:02:57.9]} 6... Nge7 {[%clk 0:02:52.3]}
7. d3 {[%clk 0:02:54.9]} 7... O-O {[%clk 0:02:50.8]} 8. Nbd2 {[%clk 0:02:54.7]}
8... a6 {[%clk 0:02:44.1]} 9. Ba4 {[%clk 0:02:54.1]} 9... b5 {[%clk 0:02:39.7]}
10. Bb3 {[%clk 0:02:54.3]} 10... d6 {[%clk 0:02:39.3]} 11. a4 {[%clk 0:02:53.6]}
11... Rb8 {[%clk 0:02:38.5]} 12. axb5 {[%clk 0:02:50.7]} 12... axb5 {[%clk
0:02:39.4]} 13. Nf1 {[%clk 0:02:51.1]} 13... h6 {[%clk 0:02:35.1]} 14. Ne3
{[%clk 0:02:49.6]} 14... Kh7 {[%clk 0:02:34.4]} 15. h3 {[%clk 0:02:27.4]} 15...
f5 {[%clk 0:02:31.3]} 16. exf5 {[%clk 0:02:28.3]} 16... gxf5 {[%clk 0:02:31.3]}
17. Nd5 {[%clk 0:02:26.1]} 17... Ng6 {[%clk 0:02:23.6]} 18. Bd2 {[%clk
0:02:17.1]} 18... Be6 {[%clk 0:02:14.7]} 19. Ra6 {[%clk 0:02:12.2]} 19... Qc8
{[%clk 0:02:05.3]} 20. Rb6 {[%clk 0:01:23.2]} 20... Rxb6 {[%clk 0:01:13.1]} 21.
Nxb6 {[%clk 0:01:23]} 21... Qe8 {[%clk 0:01:13.6]} 22. Bxe6 {[%clk 0:01:19.6]}
22... Qxe6 {[%clk 0:01:14.5]} 23. c4 {[%clk 0:01:20.5]} 23... bxc4 {[%clk
0:00:49.8]} 24. Qa4 {[%clk 0:01:19.9]} 24... d5 {[%clk 0:00:39.2]} 25. dxc4
{[%clk 0:01:16.9]} 25... d4 {[%clk 0:00:35.5]} 26. Nd5 {[%clk 0:01:11.8]} 26...
e4 {[%clk 0:00:33.8]} 27. Nh2 {[%clk 0:00:51.3]} 27... f4 {[%clk 0:00:25.1]} 28.
Nc7 {[%clk 0:00:46.2]} 28... Qd7 {[%clk 0:00:16.5]} 29. Nb5 {[%clk 0:00:41.3]}
29... e3 {[%clk 0:00:13.7]} 30. fxe3 {[%clk 0:00:40.2]} 30... fxe3 {[%clk
0:00:14.6]} 31. Bc1 {[%clk 0:00:40.7]} 31... Nf4 {[%clk 0:00:08.6]} 32. Qd1
{[%clk 0:00:37.8]} 32... e2 {[%clk 0:00:07.8]} 33. Rxe2 {[%clk 0:00:21.3]} 33...
Nxe2+ {[%clk 0:00:08.7]} 34. Qxe2 {[%clk 0:00:22.1]} 34... d3 {[%clk 0:00:08.7]}
35. Qd2 {[%clk 0:00:21.1]} 35... Qf5 {[%clk 0:00:06.1]} 36. Nf3 {[%clk
0:00:20.8]} 36... Ne5 {[%clk 0:00:03.2]} 37. Nxe5 {[%clk 0:00:09.5]} 37... Qf1+
{[%clk 0:00:01.7]} 38. Kh2 {[%clk 0:00:09.4]} 38... Bxe5+ {[%clk 0:00:01.8]} 39.
g3 {[%clk 0:00:10]} 39... Rf2+ {[%clk 0:00:01.1]} 40. Qxf2 {[%clk 0:00:09.6]}
40... Qxf2+ {[%clk 0:00:02]} 41. Kh1 {[%clk 0:00:10.5]} 41... Qxg3 {[%clk
0:00:02]} 0-1

[Event "*** SCC Grand Prix: Titled Tuesday Blitz"]
[Site "Chess.com"]
[Date "2020.08.11"]
[Round "1"]
[White "CzechmVIII"]
[Black "AldokhinIvan"]
[Result "0-1"]
[WhiteElo "2146"]
[BlackElo "2514"]
[TimeControl "180+1"]
[EndTime "10:07:30 PDT"]
[Termination "AldokhinIvan won by checkmate"]

1. e4 {[%clk 0:03:00.9]} 1... c5 {[%clk 0:02:56.5]} 2. Nf3 {[%clk 0:03:00.7]}
2... e6 {[%clk 0:02:54]} 3. Nc3 {[%clk 0:02:59.9]} 3... Nc6 {[%clk 0:02:53.4]}
4. d4 {[%clk 0:02:59.2]} 4... cxd4 {[%clk 0:02:53.5]} 5. Nxd4 {[%clk 0:03:00.1]}
5... Qc7 {[%clk 0:02:52.6]} 6. Qd3 {[%clk 0:02:57.2]} 6... Nf6 {[%clk 0:02:51]}
7. Ndb5 {[%clk 0:02:56.3]} 7... Qb8 {[%clk 0:02:50.1]} 8. Qg3 {[%clk 0:02:56.2]}
8... d6 {[%clk 0:02:40.6]} 9. Be3 {[%clk 0:02:54.2]} 9... Be7 {[%clk 0:02:23.7]}
10. O-O-O {[%clk 0:02:51.5]} 10... Ne5 {[%clk 0:02:18.7]} 11. f3 {[%clk
0:02:44.8]} 11... O-O {[%clk 0:02:14.9]} 12. Kb1 {[%clk 0:02:35.8]} 12... a6
{[%clk 0:02:14.6]} 13. Nd4 {[%clk 0:02:35.6]} 13... Bd7 {[%clk 0:02:07.5]} 14.
Qf2 {[%clk 0:02:17]} 14... b5 {[%clk 0:02:06.4]} 15. g4 {[%clk 0:02:13.4]} 15...
b4 {[%clk 0:01:59.5]} 16. Nce2 {[%clk 0:02:12.1]} 16... Bb5 {[%clk 0:01:47.7]}
17. Nc1 {[%clk 0:02:03]} 17... Rc8 {[%clk 0:01:40.6]} 18. g5 {[%clk 0:01:58]}
18... Nfd7 {[%clk 0:01:39.1]} 19. Bh3 {[%clk 0:01:51.9]} 19... Nc5 {[%clk
0:01:30.3]} 20. f4 {[%clk 0:01:35.3]} 20... Nc4 {[%clk 0:01:30.1]} 21. f5 {[%clk
0:01:33]} 21... Nxe4 {[%clk 0:01:27.2]} 22. Qg2 {[%clk 0:01:24.8]} 22... Nxe3
{[%clk 0:01:19.3]} 23. Qxe4 {[%clk 0:01:20.4]} 23... Nxd1 {[%clk 0:01:16.7]} 24.
fxe6 {[%clk 0:00:59.6]} 24... Nc3+ {[%clk 0:00:44]} 25. bxc3 {[%clk 0:00:55.6]}
25... Bc4 {[%clk 0:00:44.1]} 26. exf7+ {[%clk 0:00:49.2]} 26... Bxf7 {[%clk
0:00:36.5]} 27. Ncb3 {[%clk 0:00:43.5]} 27... Re8 {[%clk 0:00:27.5]} 28. Be6
{[%clk 0:00:39.9]} 28... Bxe6 {[%clk 0:00:24.3]} 29. Qxe6+ {[%clk 0:00:40.1]}
29... Kh8 {[%clk 0:00:24.1]} 30. Qf7 {[%clk 0:00:33.2]} 30... Bxg5 {[%clk
0:00:23.4]} 31. Ne6 {[%clk 0:00:30.3]} 31... Bf6 {[%clk 0:00:22.4]} 32. Rg1
{[%clk 0:00:24.3]} 32... Ra7 {[%clk 0:00:21.8]} 33. Qh5 {[%clk 0:00:13.1]} 33...
Rxe6 {[%clk 0:00:21.7]} 34. Rf1 {[%clk 0:00:10.4]} 34... Qe8 {[%clk 0:00:18.1]}
35. Qh3 {[%clk 0:00:10.1]} 35... bxc3 {[%clk 0:00:18.2]} 36. a4 {[%clk
0:00:06.6]} 36... Rb7 {[%clk 0:00:17.6]} 37. Ka2 {[%clk 0:00:06]} 37... Qxa4+
{[%clk 0:00:15.3]} 38. Kb1 {[%clk 0:00:04.8]} 38... Rxb3+ {[%clk 0:00:16.2]} 39.
cxb3 {[%clk 0:00:04.6]} 39... Qxb3+ {[%clk 0:00:16.8]} 40. Kc1 {[%clk 0:00:05]}
40... Qb2+ {[%clk 0:00:17.7]} 41. Kd1 {[%clk 0:00:05.4]} 41... Qd2# {[%clk
0:00:18.6]} 0-1

[Event "*** SCC Grand Prix: Titled Tuesday Blitz"]
[Site "Chess.com"]
[Date "2020.08.11"]
[Round "1"]
[White "kingofthenil"]
[Black "Andrakhanova"]
[Result "1-0"]
[WhiteElo "2455"]
[BlackElo "1681"]
[TimeControl "180+1"]
[EndTime "10:07:30 PDT"]
[Termination "kingofthenil won by resignation"]

1. e4 {[%clk 0:02:56.1]} 1... c5 {[%clk 0:02:59.7]} 2. d3 {[%clk 0:02:52.1]}
2... e6 {[%clk 0:02:59.6]} 3. g3 {[%clk 0:02:51.8]} 3... Nc6 {[%clk 0:02:58.8]}
4. Bg2 {[%clk 0:02:51.9]} 4... Nge7 {[%clk 0:02:58.9]} 5. f4 {[%clk 0:02:49]}
5... g6 {[%clk 0:02:58]} 6. Nf3 {[%clk 0:02:47.9]} 6... Bg7 {[%clk 0:02:57.9]}
7. O-O {[%clk 0:02:48.8]} 7... O-O {[%clk 0:02:57.5]} 8. c3 {[%clk 0:02:49.7]}
8... d5 {[%clk 0:02:56.4]} 9. Na3 {[%clk 0:02:50.1]} 9... dxe4 {[%clk
0:02:53.6]} 10. dxe4 {[%clk 0:02:51]} 10... b6 {[%clk 0:02:51.4]} 11. Qe2 {[%clk
0:02:49.5]} 11... a6 {[%clk 0:02:49.7]} 12. Rd1 {[%clk 0:02:50.4]} 12... Qc7
{[%clk 0:02:49.8]} 13. Be3 {[%clk 0:02:50.4]} 13... Bb7 {[%clk 0:02:49.3]} 14.
Nc4 {[%clk 0:02:49.8]} 14... Rfd8 {[%clk 0:02:48.1]} 15. e5 {[%clk 0:02:49.9]}
15... Nf5 {[%clk 0:02:44.1]} 16. Bf2 {[%clk 0:02:49.9]} 16... b5 {[%clk
0:02:44.3]} 17. Ne3 {[%clk 0:02:34.1]} 17... Nce7 {[%clk 0:02:35.6]} 18. Nxf5
{[%clk 0:02:23.7]} 18... Nxf5 {[%clk 0:02:36.5]} 19. Ng5 {[%clk 0:02:24.3]}
19... Bxg2 {[%clk 0:02:33.1]} 20. Kxg2 {[%clk 0:02:09.7]} 20... c4 {[%clk
0:02:11.4]} 21. g4 {[%clk 0:02:05]} 21... Ne7 {[%clk 0:02:08.1]} 22. Ne4 {[%clk
0:02:05.3]} 22... Rxd1 {[%clk 0:01:52.4]} 23. Rxd1 {[%clk 0:02:04.7]} 23... Rd8
{[%clk 0:01:52.3]} 24. Nd6 {[%clk 0:01:59.7]} 24... Nd5 {[%clk 0:01:50.2]} 25.
Qf3 {[%clk 0:01:59.8]} 25... Bf8 {[%clk 0:01:45.2]} 26. Bh4 {[%clk 0:01:57.6]}
26... Rd7 {[%clk 0:01:36.4]} 27. Ne8 {[%clk 0:01:26.3]} 27... Qc8 {[%clk
0:01:16.2]} 28. Rxd5 {[%clk 0:01:17]} 28... Qxe8 {[%clk 0:01:15.6]} 29. Rxd7
{[%clk 0:01:14]} 29... Qxd7 {[%clk 0:01:16.5]} 30. Bf2 {[%clk 0:01:13.3]} 30...
Qd5 {[%clk 0:01:12.1]} 31. Qxd5 {[%clk 0:01:10.3]} 31... exd5 {[%clk 0:01:13]}
32. f5 {[%clk 0:01:11.2]} 32... Bh6 {[%clk 0:01:03.3]} 33. b3 {[%clk 0:01:08.5]}
33... Kf8 {[%clk 0:00:43.7]} 34. b4 {[%clk 0:01:01.6]} 34... Ke7 {[%clk
0:00:41.9]} 35. Kf3 {[%clk 0:01:01.8]} 35... Kd7 {[%clk 0:00:34.1]} 36. Bd4
{[%clk 0:00:59]} 36... Bc1 {[%clk 0:00:29.3]} 37. h3 {[%clk 0:00:55.2]} 37...
Bd2 {[%clk 0:00:27.9]} 38. Ke2 {[%clk 0:00:51.6]} 38... Bg5 {[%clk 0:00:27.4]}
39. Be3 {[%clk 0:00:49.7]} 39... Bh4 {[%clk 0:00:24.6]} 40. Bf4 {[%clk
0:00:48.4]} 40... Bd8 {[%clk 0:00:23.3]} 41. Kf3 {[%clk 0:00:46.6]} 41... Bb6
{[%clk 0:00:22.8]} 42. Be3 {[%clk 0:00:46.9]} 42... Bd8 {[%clk 0:00:22.6]} 43.
Kg3 {[%clk 0:00:46.4]} 43... Be7 {[%clk 0:00:22.1]} 44. h4 {[%clk 0:00:46.4]}
44... h5 {[%clk 0:00:21.4]} 45. e6+ {[%clk 0:00:44.4]} 45... Ke8 {[%clk
0:00:20.5]} 46. Bd4 {[%clk 0:00:38]} 46... Kf8 {[%clk 0:00:19]} 47. Kh3 {[%clk
0:00:32.6]} 47... hxg4+ {[%clk 0:00:18.5]} 48. Kxg4 {[%clk 0:00:33.5]} 48...
gxf5+ {[%clk 0:00:18]} 49. Kxf5 {[%clk 0:00:34.4]} 49... Ke8 {[%clk 0:00:17.4]}
50. h5 {[%clk 0:00:34]} 50... Bf8 {[%clk 0:00:17.2]} 51. exf7+ {[%clk
0:00:32.9]} 51... Kxf7 {[%clk 0:00:17.2]} 52. Ke5 {[%clk 0:00:33.8]} 52... Bg7+
{[%clk 0:00:17]} 53. Kxd5 {[%clk 0:00:34.7]} 1-0

[Event "*** SCC Grand Prix: Titled Tuesday Blitz"]
[Site "Chess.com"]
[Date "2020.08.11"]
[Round "1"]
[White "harkerchess"]
[Black "serhanberat_ozdemir"]
[Result "1-0"]
[WhiteElo "2148"]
[BlackElo "2493"]
[TimeControl "180+1"]
[EndTime "10:07:31 PDT"]
[Termination "harkerchess won on time"]

1. d4 {[%clk 0:02:58.8]} 1... Nf6 {[%clk 0:02:56.8]} 2. Bg5 {[%clk 0:02:56.2]}
2... g6 {[%clk 0:02:52.2]} 3. Bxf6 {[%clk 0:02:52.8]} 3... exf6 {[%clk
0:02:53.1]} 4. c4 {[%clk 0:02:49.3]} 4... f5 {[%clk 0:02:38.4]} 5. Nc3 {[%clk
0:02:47.7]} 5... Bg7 {[%clk 0:02:34.2]} 6. g3 {[%clk 0:02:40.6]} 6... O-O {[%clk
0:02:32.8]} 7. Bg2 {[%clk 0:02:26.6]} 7... d6 {[%clk 0:02:23.7]} 8. e3 {[%clk
0:02:24.9]} 8... c6 {[%clk 0:02:23.5]} 9. Nge2 {[%clk 0:02:25]} 9... Be6 {[%clk
0:02:21]} 10. Qd3 {[%clk 0:02:21.7]} 10... Na6 {[%clk 0:02:17.3]} 11. a3 {[%clk
0:02:19.7]} 11... Re8 {[%clk 0:02:11.3]} 12. O-O {[%clk 0:02:17.7]} 12... Rc8
{[%clk 0:02:09.9]} 13. b4 {[%clk 0:02:17.3]} 13... Nc7 {[%clk 0:02:04.5]} 14. a4
{[%clk 0:01:57.8]} 14... d5 {[%clk 0:01:54.5]} 15. c5 {[%clk 0:01:56.4]} 15...
Bd7 {[%clk 0:01:45.8]} 16. b5 {[%clk 0:01:52.7]} 16... Ne6 {[%clk 0:01:45.9]}
17. Rab1 {[%clk 0:01:34.4]} 17... Ng5 {[%clk 0:01:26.5]} 18. a5 {[%clk
0:01:25.2]} 18... Ne4 {[%clk 0:01:15.2]} 19. b6 {[%clk 0:01:14]} 19... a6 {[%clk
0:00:58.3]} 20. f3 {[%clk 0:00:54.8]} 20... Nxc3 {[%clk 0:00:55.2]} 21. Nxc3
{[%clk 0:00:55.6]} 21... Qe7 {[%clk 0:00:55.7]} 22. Rbe1 {[%clk 0:00:50.9]}
22... Bh6 {[%clk 0:00:52.6]} 23. e4 {[%clk 0:00:50.1]} 23... fxe4 {[%clk
0:00:52]} 24. fxe4 {[%clk 0:00:51]} 24... f5 {[%clk 0:00:16.1]} 25. exd5 {[%clk
0:00:44.7]} 25... Qxe1 {[%clk 0:00:13.7]} 26. Rxe1 {[%clk 0:00:45.6]} 26...
Rxe1+ {[%clk 0:00:13.5]} 27. Kf2 {[%clk 0:00:46.5]} 27... Re3 {[%clk 0:00:11.7]}
28. Qc2 {[%clk 0:00:41.5]} 28... Rce8 {[%clk 0:00:04.3]} 29. dxc6 {[%clk
0:00:40.1]} 29... Bxc6 {[%clk 0:00:04.7]} 30. d5 {[%clk 0:00:34.8]} 30... Bb5
{[%clk 0:00:04.7]} 31. Nxb5 {[%clk 0:00:32.8]} 31... axb5 {[%clk 0:00:05.6]} 32.
c6 {[%clk 0:00:33.2]} 32... bxc6 {[%clk 0:00:04.9]} 33. dxc6 {[%clk 0:00:33.5]}
33... Ra3 {[%clk 0:00:04.3]} 34. b7 {[%clk 0:00:31.1]} 34... Be3+ {[%clk
0:00:04.3]} 35. Kf3 {[%clk 0:00:23.8]} 35... Ba7+ {[%clk 0:00:03.4]} 36. Kf4
{[%clk 0:00:22.2]} 36... Bb8+ {[%clk 0:00:01.4]} 37. Kg5 {[%clk 0:00:20.8]} 1-0

[Event "*** SCC Grand Prix: Titled Tuesday Blitz"]
[Site "Chess.com"]
[Date "2020.08.11"]
[Round "1"]
[White "kasparicy"]
[Black "WIDBIFS"]
[Result "0-1"]
[WhiteElo "2361"]
[BlackElo "2722"]
[TimeControl "180+1"]
[EndTime "10:07:33 PDT"]
[Termination "WIDBIFS won on time"]

1. e4 {[%clk 0:03:00.9]} 1... g6 {[%clk 0:02:59.6]} 2. d4 {[%clk 0:03:00.4]}
2... Bg7 {[%clk 0:03:00]} 3. Nc3 {[%clk 0:03:01]} 3... c6 {[%clk 0:03:00.2]} 4.
f4 {[%clk 0:03:01.2]} 4... d5 {[%clk 0:03:00.6]} 5. e5 {[%clk 0:02:56.8]} 5...
Nh6 {[%clk 0:03:00.7]} 6. Nf3 {[%clk 0:02:57.2]} 6... O-O {[%clk 0:03:01.1]} 7.
Be3 {[%clk 0:02:55.7]} 7... f6 {[%clk 0:03:00.9]} 8. Qd2 {[%clk 0:02:55.2]} 8...
Bg4 {[%clk 0:03:00.2]} 9. O-O-O {[%clk 0:02:54.2]} 9... Nd7 {[%clk 0:02:59.3]}
10. Kb1 {[%clk 0:02:54.2]} 10... e6 {[%clk 0:02:54.2]} 11. Be2 {[%clk
0:02:53.9]} 11... Qe7 {[%clk 0:02:50.6]} 12. h3 {[%clk 0:02:53.6]} 12... Bxf3
{[%clk 0:02:50.7]} 13. Bxf3 {[%clk 0:02:54.5]} 13... Nf5 {[%clk 0:02:49.8]} 14.
Bf2 {[%clk 0:02:53.9]} 14... fxe5 {[%clk 0:02:50]} 15. fxe5 {[%clk 0:02:51.2]}
15... Bh6 {[%clk 0:02:49.1]} 16. Qe2 {[%clk 0:02:47.1]} 16... Bg5 {[%clk
0:02:18.9]} 17. g3 {[%clk 0:02:21.8]} 17... Nb6 {[%clk 0:02:08.5]} 18. h4 {[%clk
0:02:20.3]} 18... Bh6 {[%clk 0:02:08.5]} 19. g4 {[%clk 0:02:18.4]} 19... Nc4
{[%clk 0:01:55.6]} 20. gxf5 {[%clk 0:02:15.1]} 20... Qb4 {[%clk 0:01:55.7]} 21.
Na4 {[%clk 0:01:47.2]} 21... Qxa4 {[%clk 0:01:35.7]} 22. f6 {[%clk 0:01:45.6]}
22... Qb5 {[%clk 0:01:01]} 23. c3 {[%clk 0:01:36.5]} 23... Na3+ {[%clk
0:00:59.9]} 24. Ka1 {[%clk 0:01:31.1]} 24... Qxe2 {[%clk 0:01:00.4]} 25. Bxe2
{[%clk 0:01:31.1]} 25... Nc2+ {[%clk 0:01:01.3]} 26. Kb1 {[%clk 0:01:29.6]}
26... Ne3 {[%clk 0:01:02.2]} 27. Bxe3 {[%clk 0:00:15.4]} 27... Bxe3 {[%clk
0:01:03.1]} 28. Rd3 {[%clk 0:00:14.8]} 28... Bh6 {[%clk 0:00:49.9]} 29. Bg4
{[%clk 0:00:12.1]} 29... Kf7 {[%clk 0:00:50.1]} 30. Kc2 {[%clk 0:00:10.9]} 30...
Rh8 {[%clk 0:00:44.2]} 31. h5 {[%clk 0:00:11.2]} 31... g5 {[%clk 0:00:25]} 32.
b3 {[%clk 0:00:09.5]} 32... Rhc8 {[%clk 0:00:24.7]} 33. c4 {[%clk 0:00:09.5]}
33... Rc7 {[%clk 0:00:24.6]} 34. Kb2 {[%clk 0:00:08.9]} 34... a5 {[%clk
0:00:24.7]} 35. a4 {[%clk 0:00:08.6]} 35... Rac8 {[%clk 0:00:23.1]} 36. c5
{[%clk 0:00:06.1]} 36... Rb8 {[%clk 0:00:21.4]} 37. b4 {[%clk 0:00:05.7]} 37...
axb4 {[%clk 0:00:21.5]} 38. Kb3 {[%clk 0:00:06]} 38... Bf8 {[%clk 0:00:20.8]}
39. a5 {[%clk 0:00:04.7]} 39... Ra8 {[%clk 0:00:18.9]} 40. Ra1 {[%clk
0:00:04.3]} 40... h6 {[%clk 0:00:18]} 41. Ra4 {[%clk 0:00:02.7]} 41... Ra6
{[%clk 0:00:17.9]} 0-1

[Event "*** SCC Grand Prix: Titled Tuesday Blitz"]
[Site "Chess.com"]
[Date "2020.08.11"]
[Round "1"]
[White "GameOverBro"]
[Black "OparinGrigoriy"]
[Result "1/2-1/2"]
[WhiteElo "2447"]
[BlackElo "2933"]
[TimeControl "180+1"]
[EndTime "10:07:34 PDT"]
[Termination "Game drawn - insufficient material"]

1. e4 {[%clk 0:03:00.9]} 1... c6 {[%clk 0:03:00.5]} 2. Nc3 {[%clk 0:03:00.9]}
2... d5 {[%clk 0:03:01.4]} 3. Nf3 {[%clk 0:03:01.3]} 3... dxe4 {[%clk
0:03:02.1]} 4. Nxe4 {[%clk 0:03:02]} 4... Nf6 {[%clk 0:03:03]} 5. Qe2 {[%clk
0:03:01.7]} 5... Na6 {[%clk 0:03:02.7]} 6. Nxf6+ {[%clk 0:02:59]} 6... gxf6
{[%clk 0:03:03.6]} 7. d4 {[%clk 0:02:58.5]} 7... Qd5 {[%clk 0:03:00.6]} 8. Qc4
{[%clk 0:02:51.7]} 8... Bg4 {[%clk 0:02:54]} 9. Qxd5 {[%clk 0:02:50.6]} 9...
cxd5 {[%clk 0:02:54.9]} 10. Bxa6 {[%clk 0:02:49.6]} 10... bxa6 {[%clk 0:02:55]}
11. Ke2 {[%clk 0:02:42.7]} 11... e6 {[%clk 0:02:55.2]} 12. h3 {[%clk 0:02:42.8]}
12... Bh5 {[%clk 0:02:53.3]} 13. g4 {[%clk 0:02:41.7]} 13... Bg6 {[%clk
0:02:53.7]} 14. c3 {[%clk 0:02:41.8]} 14... Rb8 {[%clk 0:02:42.2]} 15. b3 {[%clk
0:02:37.7]} 15... Bd6 {[%clk 0:02:37.8]} 16. Bd2 {[%clk 0:02:32.3]} 16... Kd7
{[%clk 0:02:36.5]} 17. Nh4 {[%clk 0:02:25.5]} 17... a5 {[%clk 0:02:36.4]} 18.
Nxg6 {[%clk 0:02:21.6]} 18... hxg6 {[%clk 0:02:37.3]} 19. h4 {[%clk 0:02:21.9]}
19... f5 {[%clk 0:02:38]} 20. f3 {[%clk 0:02:19.7]} 20... a4 {[%clk 0:02:36.2]}
21. b4 {[%clk 0:02:19.1]} 21... Rh7 {[%clk 0:02:31.4]} 22. Rh3 {[%clk
0:02:12.9]} 22... Rbh8 {[%clk 0:02:24.8]} 23. Bg5 {[%clk 0:02:08.4]} 23... Be7
{[%clk 0:01:54.8]} 24. Bxe7 {[%clk 0:02:05.3]} 24... Kxe7 {[%clk 0:01:55.7]} 25.
Rah1 {[%clk 0:02:04.1]} 25... Kf6 {[%clk 0:01:53.7]} 26. Kd3 {[%clk 0:02:01.8]}
26... Rc8 {[%clk 0:01:48.8]} 27. g5+ {[%clk 0:01:55.9]} 27... Ke7 {[%clk
0:01:48.1]} 28. h5 {[%clk 0:01:55.2]} 28... gxh5 {[%clk 0:01:37]} 29. Rxh5
{[%clk 0:01:56.1]} 29... Rxh5 {[%clk 0:01:37]} 30. Rxh5 {[%clk 0:01:55.9]} 30...
f4 {[%clk 0:01:37.6]} 31. Rh4 {[%clk 0:01:31.1]} 31... Rg8 {[%clk 0:01:37.3]}
32. Rg4 {[%clk 0:01:30.7]} 32... a6 {[%clk 0:01:34.9]} 33. c4 {[%clk 0:01:19]}
33... dxc4+ {[%clk 0:01:34.4]} 34. Kxc4 {[%clk 0:01:19.9]} 34... Rc8+ {[%clk
0:01:25.7]} 35. Kd3 {[%clk 0:01:19.7]} 35... Rc1 {[%clk 0:01:23.6]} 36. Rxf4
{[%clk 0:01:08.5]} 36... Ra1 {[%clk 0:01:23.8]} 37. Re4 {[%clk 0:01:07.9]} 37...
Rxa2 {[%clk 0:01:22.7]} 38. Re5 {[%clk 0:01:08.2]} 38... Rb2 {[%clk 0:01:10.9]}
39. Ra5 {[%clk 0:01:04.3]} 39... Rxb4 {[%clk 0:01:08.8]} 40. Rxa6 {[%clk
0:01:04]} 40... Kf8 {[%clk 0:01:09.4]} 41. Ke4 {[%clk 0:01:01.2]} 41... Kg7
{[%clk 0:01:09.9]} 42. f4 {[%clk 0:00:59.2]} 42... Kg6 {[%clk 0:01:09.3]} 43.
Ra8 {[%clk 0:00:59.1]} 43... Rc4 {[%clk 0:01:09.4]} 44. Rg8+ {[%clk 0:00:58.6]}
44... Kh5 {[%clk 0:01:03.3]} 45. Rg7 {[%clk 0:00:53.1]} 45... a3 {[%clk
0:01:01.7]} 46. Rxf7 {[%clk 0:00:51.6]} 46... Ra4 {[%clk 0:01:01.8]} 47. Rh7+
{[%clk 0:00:48.7]} 47... Kg6 {[%clk 0:00:53.7]} 48. Rh6+ {[%clk 0:00:47.1]}
48... Kg7 {[%clk 0:00:51.7]} 49. Rh1 {[%clk 0:00:43.3]} 49... a2 {[%clk
0:00:52.2]} 50. Ra1 {[%clk 0:00:43.8]} 50... Ra5 {[%clk 0:00:50.2]} 51. d5
{[%clk 0:00:40.8]} 51... exd5+ {[%clk 0:00:50.2]} 52. Ke5 {[%clk 0:00:41.3]}
52... Kf7 {[%clk 0:00:44.5]} 53. f5 {[%clk 0:00:40.5]} 53... Kf8 {[%clk
0:00:38]} 54. Kd4 {[%clk 0:00:39.9]} 54... Ke8 {[%clk 0:00:28.8]} 55. Ke5 {[%clk
0:00:40]} 55... Kf7 {[%clk 0:00:25.9]} 56. Kd4 {[%clk 0:00:39.3]} 56... Kf8
{[%clk 0:00:25.1]} 57. Ke5 {[%clk 0:00:39.7]} 57... Ke7 {[%clk 0:00:25.7]} 58.
g6 {[%clk 0:00:35.4]} 58... d4+ {[%clk 0:00:15.9]} 59. Kxd4 {[%clk 0:00:34.9]}
59... Kf6 {[%clk 0:00:16.5]} 60. Kc3 {[%clk 0:00:34.6]} 60... Rxf5 {[%clk
0:00:14.1]} 61. Rxa2 {[%clk 0:00:33.4]} 61... Kxg6 {[%clk 0:00:13.9]} 62. Rg2+
{[%clk 0:00:33.3]} 62... Rg5 {[%clk 0:00:14.2]} 63. Rxg5+ {[%clk 0:00:33.3]}
63... Kxg5 {[%clk 0:00:15.1]} 1/2-1/2